fUST/lending_fUST_20240601
["ID","MTS","AMOUNT","RATE_DAILY","PERIOD"]
[328336000,1717182645960,-200.253008,0.000245,2]
[328336001,1717182645970,-200.253008,0.000245,2]
[328336002,1717182645982,-667.650215,0.000245,2]
[328336003,1717182645994,-667.650215,0.000245,2]
[328336004,1717182646006,-225.073837,0.000245,2]
[328336005,1717182646015,-225.073837,0.000245,2]
[328336006,1717182646026,-151.0,0.000245,2]
[328336007,1717182646036,-151.0,0.000245,2]
[328336008,1717182646046,-327.548759,0.000245,2]
[328336009,1717182646056,-327.548759,0.000245,2]
[328336010,1717182646065,-151.0,0.000245,2]
[328336011,1717182646074,-509.303918,0.000245,2]
[328336012,1717182646085,-509.303918,0.000245,2]
[328336013,1717182646095,-244.863943,0.000245,2]
[328336014,1717182646106,-244.863943,0.000245,2]
[328336015,1717182646116,-423.022789,0.000245,2]
[328336016,1717182646126,-423.022789,0.000245,2]
[328336017,1717182646135,-2688.023964,0.000245,2]
[328336018,1717182646145,-2688.023964,0.000245,2]
[328336019,1717182646155,-1701.534865,0.000245,2]
[328336020,1717182646164,-1701.534865,0.000245,2]
[328336021,1717182646174,-460.593262,0.000245,2]
[328336022,1717182646183,-460.593262,0.000245,2]
[328336023,1717182646193,-151.0,0.00024567,5]
[328336024,1717182646203,-151.0,0.00024567,5]
[328336025,1717182646213,-800.0,0.000246,2]
[328336026,1717182646225,-807.85074428,0.00024617,2]
[328336027,1717182646234,-151.0,0.00024658,2]
[328336028,1717182646244,-1378.6830942,0.00024774,2]
[328336031,1717182646550,-1134.342098,0.00024774,2]
[328336032,1717182646563,-1860.25672805,0.00024774,2]
[328336033,1717182646573,-156.889942,0.00024774,2]
[328336034,1717182646583,-151.0,0.00024774,2]
[328336035,1717182646592,-151.0,0.00024774,2]
[328336036,1717182646602,-195.750142,0.00024774,2]
[328336037,1717182646611,-151.0,0.00024774,2]
[328336038,1717182646620,-151.0,0.00024774,2]
[328336039,1717182646629,-151.0,0.00024774,2]
[328336041,1717182646638,-224.241749,0.00024774,2]
[328336043,1717182646647,-224.241749,0.00024774,2]
[328336046,1717182646657,-200.253008,0.00024774,2]
[328336048,1717182646666,-200.253008,0.00024774,2]
[328336051,1717182646675,-667.650215,0.00024774,2]
[328336053,1717182646684,-667.650215,0.00024774,2]
[328336055,1717182646694,-225.073837,0.00024774,2]
[328336057,1717182646703,-225.073837,0.00024774,2]
[328336059,1717182646713,-151.0,0.00024774,2]
[328336061,1717182646722,-151.0,0.00024774,2]
[328336063,1717182646731,-327.548759,0.00024774,2]
[328336065,1717182646741,-327.548759,0.00024774,2]
[328336067,1717182646750,-151.0,0.00024774,2]
[328336069,1717182646760,-509.303918,0.00024774,2]
[328336071,1717182646769,-509.303918,0.00024774,2]
[328336073,1717182646778,-244.863943,0.00024774,2]
[328336075,1717182646787,-244.863943,0.00024774,2]
[328336076,1717182646796,-423.022789,0.00024774,2]
[328336078,1717182646806,-423.022789,0.00024774,2]
[328336080,1717182646815,-2688.023964,0.00024774,2]
[328336081,1717182646824,-2688.023964,0.00024774,2]
[328336082,1717182646834,-1154.15956652,0.00024774,2]
[328336083,1717182647033,-282.5,0.00024774,2]
[328336084,1717182647044,-261.81,0.00024774,2]
[328336085,1717182647092,-3.06529848,0.00024774,2]
[328336086,1717182647101,-1701.534865,0.00024774,2]
[328336087,1717182647111,-460.593262,0.00024774,2]
[328336088,1717182647120,-460.593262,0.00024774,2]
[328336089,1717182647129,-151.0,0.00024784,5]
[328336090,1717182647138,-48.36943475,0.00024784,5]
[328336108,1717183458367,189644.4461,0.00027315,30]
[328336182,1717183835415,-522.25771882,0.00021499,2]
[328336183,1717183835425,-394.489226,0.000215,2]
[328336184,1717183835434,-57.81676449,0.00023198,2]
[328336185,1717183835445,-864.65523561,0.00023198,2]
[328336186,1717183835455,-374.8008743,0.00023375,2]
[328336187,1717183835464,-22884.70084567,0.00023469,2]
[328336188,1717183835473,-6994.09257,0.0002347,2]
[328336189,1717183835481,-509.90681168,0.0002437,2]
[328336190,1717183835490,-761.75049726,0.000244,2]
[328336191,1717183835499,-4229.78307947,0.00024439,2]
[328336192,1717183835508,-925.7533166,0.00024471,2]
[328336193,1717183835517,-403.39463645,0.00024658,7]
[328336194,1717183835527,-151.0,0.00024785,5]
[328336195,1717183835535,-2637.57421513,0.00024788,5]
[328336196,1717183835547,-364.80087435,0.00024788,5]
[328336211,1717183835687,-471.45,0.00024788,5]
[328336311,1717183840158,-49228.26444524,0.00024788,5]
[328336338,1717183844323,-8397.74195489,0.00024788,5]
[328336340,1717183844338,-484.61722277,0.00024788,5]
[328336341,1717183844457,-34084.44745685,0.00024788,5]
[328336342,1717183844469,-794.16163535,0.00024788,5]
[328336346,1717183870429,1098.98243404,0.00015,2]
[328336478,1717184757120,1137.98739382,0.00016873,2]
[328336479,1717184861635,2666.90491838,0.000189,2]
[328336542,1717185033145,-2118.00525841,0.00019898,2]
[328336545,1717185033155,-717.8620449,0.00019899,2]
[328336548,1717185033166,-59491.78285955,0.00019999,2]
[328336550,1717185033175,-6878.87299183,0.0002,2]
[328336552,1717185033185,-6767.24518434,0.0002,2]
[328336554,1717185033195,-218.74337363,0.0002,5]
[328336556,1717185033205,-162.215147,0.00020426,2]
[328336558,1717185033214,-248.590097,0.00020541,2]
[328336560,1717185033224,-250.0,0.00020843,2]
[328336562,1717185033233,-3000.0,0.000215,2]
[328336565,1717185033243,-3000.0,0.0002151,2]
[328336567,1717185033252,-3000.0,0.0002152,2]
[328336568,1717185033261,-3000.0,0.0002153,2]
[328336570,1717185033271,-3499.320381,0.0002154,2]
[328336572,1717185033280,-178.0,0.00022,2]
[328336574,1717185033289,-178.0,0.00022192,2]
[328336576,1717185033299,-313.67,0.00022489,3]
[328336577,1717185033308,-156.83,0.00022489,3]
[328336579,1717185033318,-197.16296357,0.00022498,2]
[328336581,1717185033327,-500.0,0.00022498,2]
[328336583,1717185033337,-500.0,0.00022498,2]
[328336586,1717185033346,-387.03951065,0.00022498,2]
[328336587,1717185033355,-500.0,0.00022498,2]
[328336589,1717185033365,-500.0,0.00022498,2]
[328336591,1717185033374,-581.3629309,0.00022498,2]
[328336593,1717185033383,-324.61215325,0.00022498,2]
[328336594,1717185033392,-500.0,0.00022498,2]
[328336596,1717185033401,-500.0,0.00022498,2]
[328336598,1717185033411,-500.0,0.00022498,2]
[328336600,1717185033420,-500.0,0.00022498,2]
[328336602,1717185033429,-279.93786873,0.00022499,2]
[328336603,1717185033438,-12728.14284416,0.00022499,2]
[328336703,1717185050680,96.12525376,0.000189,2]
[328336704,1717185053641,4819.09100314,0.00027,30]
[328336705,1717185081171,1098.98243404,0.00015,2]
[328336708,1717185246667,155.02480397,9.999e-05,2]
[328336709,1717185247729,944.39208909,0.00015,2]
[328336710,1717185259973,1169.32881608,0.00015,2]
[328336712,1717185284131,155.02635448,9.999e-05,2]
[328336732,1717185750125,441.1171266,0.0001819,2]
[328336748,1717186043566,267.03977808,9.999e-05,7]
[328336808,1717186232121,-943.61145002,0.00018666,2]
[328336868,1717186238122,-1174.39380839,0.00018666,2]
[328336870,1717186238131,-267.03977808,0.00018667,7]
[328336872,1717186238141,-2728.25739136,0.00018667,2]
[328336874,1717186238152,-4025.26948016,0.00018667,2]
[328336876,1717186238164,-1507.30240698,0.00018667,2]
[328336878,1717186238175,-1009.21580074,0.00018667,2]
[328336881,1717186238187,-305.12458788,0.00018667,2]
[328336883,1717186238196,-6073.0733073,0.00018678,2]
[328336886,1717186238205,-156.57637981,0.00018733,2]
[328336888,1717186238216,-24900.0,0.00018734,2]
[328336889,1717186238226,-58.9056348,0.000189,2]
[328336891,1717186238235,-1777.93661226,0.000189,2]
[328336893,1717186238244,-2501.46871844,0.00019895,2]
[328336894,1717186238254,-705.75,0.00019983,3]
[328336895,1717186238263,-705.75,0.00019983,3]
[328336897,1717186238272,-942.70067887,0.00019991,2]
[328336898,1717186238281,-155.22457048,0.00019991,2]
[328336899,1717186238290,-9120.57770215,0.00019991,2]
[328336900,1717186238299,-201.56551538,0.00019991,2]
[328336901,1717186238309,-530.520944,0.00019992,2]
[328336902,1717186238318,-418.52818871,0.00019992,2]
[328336903,1717186238327,-500.0,0.00019992,2]
[328336904,1717186238337,-182.10720322,0.00019992,2]
[328336905,1717186238346,-500.0,0.00019992,2]
[328336906,1717186238355,-437.93380547,0.00019992,2]
[328336907,1717186238364,-483.22924663,0.00019992,2]
[328336908,1717186238373,-500.0,0.00019992,2]
[328336909,1717186238383,-500.0,0.00019992,2]
[328336910,1717186238392,-500.0,0.00019992,2]
[328336911,1717186238402,-500.0,0.00019992,2]
[328336912,1717186238412,-500.0,0.00019992,2]
[328336913,1717186238421,-500.0,0.00019992,2]
[328336914,1717186238430,-500.0,0.00019992,2]
[328336915,1717186238439,-457.5379238,0.00019992,2]
[328336916,1717186238449,-500.0,0.00019992,2]
[328336917,1717186238458,-500.0,0.00019992,2]
[328336918,1717186238468,-500.0,0.00019992,2]
[328336919,1717186238478,-500.0,0.00019992,2]
[328336920,1717186238487,-500.0,0.00019992,2]
[328336921,1717186238497,-548.01264728,0.00019992,2]
[328336922,1717186238506,-500.0,0.00019992,2]
[328336923,1717186238515,-500.0,0.00019992,2]
[328336924,1717186238524,-155.24208641,0.00019992,2]
[328336925,1717186238533,-500.0,0.00019992,2]
[328336926,1717186238542,-500.0,0.00019992,2]
[328336927,1717186238551,-500.0,0.00019992,2]
[328336928,1717186238561,-500.0,0.00019992,2]
[328336929,1717186238570,-500.0,0.00019992,2]
[328336930,1717186238579,-500.0,0.00019992,2]
[328336931,1717186238588,-500.0,0.00019992,2]
[328336932,1717186238598,-500.0,0.00019992,2]
[328336933,1717186238607,-500.0,0.00019992,2]
[328336934,1717186238616,-558.24773057,0.00019992,2]
[328336935,1717186238628,-525.23886752,0.00019992,2]
[328336936,1717186238639,-500.0,0.00019992,2]
[328336937,1717186238649,-500.0,0.00019992,2]
[328336938,1717186238658,-500.0,0.00019992,2]
[328336939,1717186238667,-500.0,0.00019992,2]
[328336940,1717186238676,-500.0,0.00019992,2]
[328336941,1717186238686,-7315.73288726,0.00019993,2]
[328336958,1717186241073,-1432.28524259,0.00019993,2]
[328336961,1717186241086,-29817.21266122,0.00019993,2]
[328336967,1717186241130,-3444.62068995,0.00019993,2]
[328336969,1717186241139,-713.17752606,0.00019995,7]
[328336971,1717186241148,-15457.33767622,0.00019995,2]
[328336973,1717186241160,-24070.3465718,0.00019995,2]
[328336975,1717186241169,-1352.96492829,0.0002,2]
[328336977,1717186241179,-164.793736,0.00020604,2]
[328336979,1717186241188,-192.98571482,0.00021,2]
[328336981,1717186241197,-220.80477812,0.00021373,2]
[328336983,1717186241206,-1192.426459,0.000215,2]
[328336985,1717186241216,-2501.4687184,0.00021524,2]
[328336987,1717186241226,-166.666666,0.00021918,2]
[328336989,1717186241234,-4228.46577223,0.00022243,2]
[328336991,1717186241244,-166.666666,0.00022431,2]
[328336993,1717186241253,-921.85323911,0.00022498,2]
[328337004,1717186241336,-551.40633265,0.00022498,2]
[328337007,1717186241359,-249.46158333,0.00022498,2]
[328337009,1717186241368,-548.72447814,0.00022498,2]
[328337011,1717186241377,-155.44196189,0.00022498,2]
[328337013,1717186241386,-1280.85326046,0.00022498,2]
[328337015,1717186241395,-1426.44632803,0.00022498,2]
[328337217,1717186243145,-579.38716547,0.00022498,2]
[328337219,1717186243154,-187.39912452,0.00022498,2]
[328337221,1717186243163,-155.70818563,0.00022498,2]
[328337223,1717186243173,-224.83709056,0.00022499,2]
[328337225,1717186243182,-21460.58031287,0.000225,7]
[328337227,1717186243191,-13545.42814697,0.000225,2]
[328337231,1717186243214,-9339.2726987,0.000225,2]
[328337233,1717186243224,-319.207954,0.000225,2]
[328337248,1717186243310,-319.207954,0.000225,2]
[328337251,1717186243342,-151.0,0.000225,2]
[328337253,1717186243351,-151.0,0.000225,2]
[328337255,1717186243360,-248.964113,0.000225,2]
[328337257,1717186243370,-248.964113,0.000225,2]
[328337259,1717186243378,-151.0,0.000225,2]
[328337261,1717186243387,-151.0,0.000225,2]
[328337263,1717186243397,-151.0,0.000225,2]
[328337265,1717186243406,-151.0,0.000225,2]
[328337267,1717186243415,-151.0,0.000225,2]
[328337269,1717186243424,-151.0,0.000225,2]
[328337271,1717186243433,-943.740646,0.000225,2]
[328337273,1717186243442,-151.0,0.000225,2]
[328337275,1717186243451,-943.740646,0.000225,2]
[328337277,1717186243460,-151.0,0.000225,2]
[328337279,1717186243469,-151.260386,0.000225,2]
[328337281,1717186243478,-218.896398,0.000225,2]
[328337283,1717186243487,-218.896398,0.000225,2]
[328337285,1717186243497,-151.0,0.000225,2]
[328337287,1717186243505,-151.0,0.000225,2]
[328337289,1717186243514,-152.226573,0.000225,2]
[328337291,1717186243524,-396.808827,0.000225,2]
[328337293,1717186243533,-396.808827,0.000225,2]
[328337295,1717186243542,-151.0,0.000225,2]
[328337297,1717186243551,-553.286267,0.000225,2]
[328337299,1717186243560,-151.0,0.000225,2]
[328337301,1717186243569,-553.286267,0.000225,2]
[328337303,1717186243578,-408.308941,0.000225,2]
[328337305,1717186243586,-408.308941,0.000225,2]
[328337307,1717186243595,-498.509372,0.000225,2]
[328337309,1717186243604,-498.509372,0.000225,2]
[328337311,1717186243613,-2024.307272,0.000225,2]
[328337313,1717186243622,-2024.307272,0.000225,2]
[328337315,1717186243631,-2024.307272,0.000225,2]
[328337317,1717186243640,-2024.307272,0.000225,2]
[328337319,1717186243649,-1639.341704,0.000225,2]
[328337321,1717186243658,-1639.341704,0.000225,2]
[328337323,1717186243667,-1639.341704,0.000225,2]
[328337325,1717186243677,-1639.341704,0.000225,2]
[328337327,1717186243686,-151.0,0.000225,2]
[328337329,1717186243695,-151.0,0.000225,2]
[328337331,1717186243705,-151.0,0.000225,2]
[328337333,1717186243714,-418.171377,0.000225,2]
[328337335,1717186243723,-418.171377,0.000225,2]
[328337337,1717186243732,-418.171377,0.000225,2]
[328337339,1717186243740,-418.171377,0.000225,2]
[328337341,1717186243749,-418.171377,0.000225,2]
[328337343,1717186243758,-418.171377,0.000225,2]
[328337345,1717186243767,-226.075542,0.000225,2]
[328337347,1717186243778,-166.666666,0.00022944,2]
[328337349,1717186243788,-155.00775039,0.00023,2]
[328337351,1717186243797,-194.13394804,0.00023,2]
[328337353,1717186243806,-155.02635448,0.00023,2]
[328337355,1717186243815,-187.65257626,0.00023,2]
[328337357,1717186243824,-2501.4687184,0.00023153,2]
[328337359,1717186243833,-166.666666,0.00023456,2]
[328337361,1717186243842,-1777.93661226,0.000239,2]
[328337363,1717186243851,-166.666666,0.00023969,2]
[328337365,1717186243860,-200.0,0.0002411,2]
[328337367,1717186243870,-761.75049726,0.000244,2]
[328337369,1717186243879,-166.666666,0.00024482,2]
[328337371,1717186243889,-9598.37176211,0.000245,2]
[328337373,1717186243897,-151.0,0.000245,2]
[328337375,1717186243906,-259.173457,0.000245,2]
[328337377,1717186243917,-151.0,0.000245,2]
[328337379,1717186243925,-151.0,0.000245,2]
[328337381,1717186243934,-943.740646,0.000245,2]
[328337383,1717186243943,-151.0,0.000245,2]
[328337385,1717186243952,-943.740646,0.000245,2]
[328337387,1717186243960,-218.896398,0.000245,2]
[328337389,1717186243969,-218.896398,0.000245,2]
[328337391,1717186243979,-151.0,0.000245,2]
[328337393,1717186243988,-151.0,0.000245,2]
[328337395,1717186243999,-396.808827,0.000245,2]
[328337397,1717186244010,-396.808827,0.000245,2]
[328337399,1717186244019,-295.7258,0.000245,2]
[328337401,1717186244028,-553.286267,0.000245,2]
[328337403,1717186244038,-151.0,0.000245,2]
[328337405,1717186244047,-553.286267,0.000245,2]
[328337407,1717186244057,-408.308941,0.000245,2]
[328337409,1717186244065,-408.308941,0.000245,2]
[328337411,1717186244074,-498.509372,0.000245,2]
[328337413,1717186244085,-498.509372,0.000245,2]
[328337415,1717186244095,-2024.307272,0.000245,2]
[328337417,1717186244104,-2024.307272,0.000245,2]
[328337419,1717186244114,-1639.341704,0.000245,2]
[328337421,1717186244123,-1639.341704,0.000245,2]
[328337423,1717186244132,-151.0,0.000245,2]
[328337425,1717186244141,-140.90535916,0.000245,2]
[328337428,1717186244154,-277.26601784,0.000245,2]
[328337430,1717186244163,-418.171377,0.000245,2]
[328337432,1717186244171,-151.0,0.00024559,5]
[328337433,1717186244180,-9031.75452754,0.00024695,2]
[328337474,1717186244656,-10138.64688974,0.00024695,2]
[328337476,1717186244666,-213.638904,0.00024695,2]
[328337478,1717186244675,-418.171377,0.00024695,2]
[328337480,1717186244684,-418.171377,0.00024695,2]
[328337482,1717186244694,-282.0,0.000247,2]
[328337484,1717186244703,-498.0,0.00024725,2]
[328337486,1717186244712,-152.695,0.00024725,2]
[328337488,1717186244722,-151.0,0.0002478,5]
[328337490,1717186244732,-151.0,0.0002478,5]
[328337491,1717186244741,-2501.4687184,0.00024781,2]
[328337492,1717186244751,-145501.74173542,0.00024788,5]
[328337493,1717186244760,-759.57985493,0.00024797,2]
[328337494,1717186244770,-2688.65594462,0.00024798,2]
[328337495,1717186244779,-2018.88011406,0.000248,4]
[328337496,1717186244789,-369.85195648,0.000248,2]
[328337497,1717186244798,-178.5,0.000248,2]
[328337498,1717186244807,-284.487663,0.000248,2]
[328337499,1717186244816,-151.0,0.000248,2]
[328337500,1717186244826,-151.0,0.000248,2]
[328337501,1717186244835,-151.0,0.000248,2]
[328337502,1717186244845,-151.0,0.000248,2]
[328337503,1717186244854,-158.563685,0.000248,2]
[328337504,1717186244863,-151.0,0.000248,2]
[328337505,1717186244872,-151.0,0.000248,2]
[328337506,1717186244882,-230.573001,0.000248,2]
[328337507,1717186244891,-151.0,0.000248,2]
[328337508,1717186244901,-319.207954,0.000248,2]
[328337509,1717186244910,-151.0,0.000248,2]
[328337510,1717186244919,-319.207954,0.000248,2]
[328337511,1717186244930,-248.964113,0.000248,2]
[328337512,1717186244939,-248.964113,0.000248,2]
[328337513,1717186244948,-151.0,0.000248,2]
[328337514,1717186244958,-151.0,0.000248,2]
[328337515,1717186244967,-943.740646,0.000248,2]
[328337516,1717186244979,-151.0,0.000248,2]
[328337517,1717186244988,-943.740646,0.000248,2]
[328337518,1717186245000,-218.896398,0.000248,2]
[328337519,1717186245012,-218.896398,0.000248,2]
[328337520,1717186245022,-151.0,0.000248,2]
[328337521,1717186245031,-151.0,0.000248,2]
[328337522,1717186245041,-396.808827,0.000248,2]
[328337523,1717186245050,-396.808827,0.000248,2]
[328337524,1717186245060,-553.286267,0.000248,2]
[328337525,1717186245069,-553.286267,0.000248,2]
[328337526,1717186245080,-408.308941,0.000248,2]
[328337527,1717186245089,-408.308941,0.000248,2]
[328337528,1717186245099,-498.509372,0.000248,2]
[328337529,1717186245108,-498.509372,0.000248,2]
[328337530,1717186245117,-2024.307272,0.000248,2]
[328337531,1717186245127,-2024.307272,0.000248,2]
[328337532,1717186245137,-1639.341704,0.000248,2]
[328337533,1717186245146,-1639.341704,0.000248,2]
[328337534,1717186245155,-418.171377,0.000248,2]
[328337535,1717186245165,-418.171377,0.000248,2]
[328337536,1717186245175,-1015.3018917,0.00024894,2]
[328337537,1717186245184,-2205.96,0.00024896,2]
[328337538,1717186245193,-2205.96,0.00024896,2]
[328337539,1717186245203,-2205.96,0.00024896,2]
[328337540,1717186245212,-2205.96,0.00024896,2]
[328337541,1717186245223,-2205.96,0.00024896,2]
[328337542,1717186245232,-605.15064834,0.00024896,2]
[328337543,1717186245242,-4242.30926626,0.00024897,2]
[328337544,1717186245251,-151.0,0.00024897,2]
[328337545,1717186245261,-151.0,0.00024897,2]
[328337546,1717186245270,-151.0,0.00024897,2]
[328337547,1717186245280,-151.0,0.00024897,2]
[328337548,1717186245289,-151.0,0.00024897,2]
[328337549,1717186245299,-151.0,0.00024897,2]
[328337550,1717186245308,-151.0,0.00024897,2]
[328337551,1717186245317,-151.0,0.00024897,2]
[328337552,1717186245327,-319.207954,0.00024897,2]
[328337553,1717186245336,-151.0,0.00024897,2]
[328337554,1717186245346,-319.207954,0.00024897,2]
[328337555,1717186245356,-248.964113,0.00024897,2]
[328337556,1717186245366,-248.964113,0.00024897,2]
[328337557,1717186245375,-151.0,0.00024897,2]
[328337558,1717186245384,-151.0,0.00024897,2]
[328337559,1717186245394,-943.740646,0.00024897,2]
[328337560,1717186245404,-244.734675,0.00024897,2]
[328337561,1717186245413,-943.740646,0.00024897,2]
[328337562,1717186245423,-218.896398,0.00024897,2]
[328337563,1717186245432,-218.896398,0.00024897,2]
[328337564,1717186245442,-206.466269,0.00024897,2]
[328337565,1717186245451,-163.048134,0.00024897,2]
[328337566,1717186245460,-396.808827,0.00024897,2]
[328337568,1717186245469,-396.808827,0.00024897,2]
[328337569,1717186245481,-553.286267,0.00024897,2]
[328337570,1717186245490,-553.286267,0.00024897,2]
[328337571,1717186245500,-408.308941,0.00024897,2]
[328337572,1717186245510,-408.308941,0.00024897,2]
[328337573,1717186245519,-498.509372,0.00024897,2]
[328337574,1717186245528,-498.509372,0.00024897,2]
[328337575,1717186245537,-2024.307272,0.00024897,2]
[328337576,1717186245546,-2024.307272,0.00024897,2]
[328337577,1717186245555,-1639.341704,0.00024897,2]
[328337578,1717186245564,-1639.341704,0.00024897,2]
[328337579,1717186245574,-418.171377,0.00024897,2]
[328337580,1717186245583,-418.171377,0.00024897,2]
[328337581,1717186245592,-6311.87748218,0.00024897,2]
[328337582,1717186245602,-1044.69294597,0.00024985,2]
[328337583,1717186245612,-230.77420148,0.00024995,2]
[328337584,1717186245622,-162.68825562,0.00024995,2]
[328337585,1717186245631,-427.25130369,0.00024995,2]
[328337586,1717186245640,-2205.96,0.00024997,2]
[328337587,1717186245650,-156.97484295,0.00024998,2]
[328337588,1717186245659,-2405.49566351,0.00024998,2]
[328337589,1717186245745,-284.01585024,0.00024998,2]
[328337590,1717186245755,-17597.32110426,0.00024998,2]
[328337591,1717186245764,-151.0,0.00024998,2]
[328337592,1717186245774,-151.0,0.00024998,2]
[328337593,1717186245784,-151.0,0.00024998,2]
[328337594,1717186245794,-151.0,0.00024998,2]
[328337595,1717186245806,-151.0,0.00024998,2]
[328337596,1717186245816,-151.0,0.00024998,2]
[328337597,1717186245827,-219.938857,0.00024998,2]
[328337598,1717186245837,-151.0,0.00024998,2]
[328337599,1717186245848,-319.207954,0.00024998,2]
[328337600,1717186245857,-178.632372,0.00024998,2]
[328337601,1717186245866,-319.207954,0.00024998,2]
[328337602,1717186245876,-248.964113,0.00024998,2]
[328337605,1717186245885,-248.964113,0.00024998,2]
[328337608,1717186245895,-943.740646,0.00024998,2]
[328337610,1717186245904,-943.740646,0.00024998,2]
[328337612,1717186245914,-218.896398,0.00024998,2]
[328337614,1717186245923,-218.896398,0.00024998,2]
[328337616,1717186245932,-396.808827,0.00024998,2]
[328337618,1717186245941,-396.808827,0.00024998,2]
[328337620,1717186245951,-553.286267,0.00024998,2]
[328337622,1717186245959,-553.286267,0.00024998,2]
[328337624,1717186245968,-408.308941,0.00024998,2]
[328337626,1717186245978,-408.308941,0.00024998,2]
[328337627,1717186245986,-498.509372,0.00024998,2]
[328337629,1717186245998,-498.509372,0.00024998,2]
[328337631,1717186246011,-2024.307272,0.00024998,2]
[328337633,1717186246020,-2024.307272,0.00024998,2]
[328337635,1717186246030,-1639.341704,0.00024998,2]
[328337638,1717186246040,-1639.341704,0.00024998,2]
[328337640,1717186246050,-418.171377,0.00024998,2]
[328337641,1717186246059,-418.171377,0.00024998,2]
[328337643,1717186246069,-847.47225448,0.00024999,2]
[328337645,1717186246079,-319.207954,0.00024999,2]
[328337647,1717186246088,-319.207954,0.00024999,2]
[328337649,1717186246099,-248.964113,0.00024999,2]
[328337651,1717186246109,-248.964113,0.00024999,2]
[328337652,1717186246118,-943.740646,0.00024999,2]
[328337653,1717186246127,-943.740646,0.00024999,2]
[328337654,1717186246135,-218.896398,0.00024999,2]
[328337655,1717186246145,-218.896398,0.00024999,2]
[328337656,1717186246154,-396.808827,0.00024999,2]
[328337657,1717186246163,-396.808827,0.00024999,2]
[328337658,1717186246172,-553.286267,0.00024999,2]
[328337659,1717186246181,-553.286267,0.00024999,2]
[328337660,1717186246190,-408.308941,0.00024999,2]
[328337661,1717186246198,-408.308941,0.00024999,2]
[328337662,1717186246207,-498.509372,0.00024999,2]
[328337663,1717186246216,-498.509372,0.00024999,2]
[328337665,1717186246226,-2024.307272,0.00024999,2]
[328337667,1717186246235,-2024.307272,0.00024999,2]
[328337669,1717186246247,-2024.307272,0.00024999,2]
[328337670,1717186246270,-2024.307272,0.00024999,2]
[328337671,1717186246286,-1639.341704,0.00024999,2]
[328337672,1717186246307,-1639.341704,0.00024999,2]
[328337673,1717186246326,-2205.96,0.00024999,2]
[328337674,1717186246346,-2205.96,0.00024999,2]
[328337675,1717186246364,-2205.96,0.00024999,2]
[328337676,1717186246379,-418.171377,0.00024999,2]
[328337677,1717186246396,-418.171377,0.00024999,2]
[328337678,1717186246415,-418.171377,0.00024999,2]
[328337679,1717186246433,-418.171375,0.00024999,2]
[328337680,1717186246446,-50291.54689769,0.00025,2]
[328337681,1717186246464,-40000.0,0.00025,4]
[328337682,1717186246480,-401.51088538,0.00025,2]
[328337683,1717186246497,-160.0,0.00025,2]
[328337684,1717186246509,-3633.92034182,0.00025,2]
[328337685,1717186246523,-155.02288266,0.00025,2]
[328337686,1717186246537,-309.7986688,0.00025,2]
[328337687,1717186246552,-282.0,0.00025,2]
[328337688,1717186246567,-180.0,0.00025,2]
[328337689,1717186246582,-2000.0,0.00025,2]
[328337690,1717186246597,-151.0,0.00025,2]
[328337691,1717186246612,-151.0,0.00025,2]
[328337692,1717186246626,-151.0,0.00025,2]